bitfinex/quotes_BTCUSD_20250714
["timestamp","ask_amount","ask_price","bid_price","bid_amount"]
[1752508398321,0.17960615,119690.0,119680.0,0.66507085]
[1752508398553,0.1712518,119690.0,119680.0,0.66507085]
[1752508398801,0.17960615,119690.0,119680.0,0.66507085]
[1752508399009,0.1712518,119690.0,119680.0,0.66507085]
[1752508399223,0.00415347,119690.0,119680.0,1.37456314]
[1752508399442,0.00415347,119690.0,119680.0,2.04699393]
[1752508399653,0.00415347,119690.0,119680.0,1.41416998]
[1752508399934,0.00415347,119690.0,119680.0,1.41417012]
[1752508400173,0.0004,119700.0,119690.0,0.53834879]
[1752508400387,0.0004,119700.0,119690.0,0.55385964]
[1752508400617,0.0004,119700.0,119690.0,0.56221427]
[1752508400851,0.0004,119700.0,119690.0,0.57056883]
[1752508401112,0.0004,119700.0,119690.0,0.55505805]
[1752508401332,0.0004,119700.0,119690.0,0.57052409]
[1752508401557,0.0004,119700.0,119690.0,0.57887851]
[1752508402020,0.0004,119700.0,119690.0,0.91656162]
[1752508402504,0.0004,119700.0,119690.0,0.90209565]
[1752508403161,0.0004,119700.0,119690.0,0.90209572]
[1752508403399,0.0004,119700.0,119690.0,0.88538667]
[1752508403648,0.0004,119700.0,119690.0,0.89374123]
[1752508404070,0.0004,119700.0,119690.0,0.88538667]
[1752508404072,0.0004,119700.0,119690.0,0.89374109]
[1752508404296,0.0004,119700.0,119690.0,0.58102896]
[1752508404509,0.16748437,119700.0,119690.0,0.001]
[1752508404682,0.85883012,119700.0,119690.0,0.49964]
[1752508404871,0.89123012,119700.0,119690.0,0.001]
[1752508405248,0.80369303,119700.0,119690.0,0.15956]
[1752508405463,0.80369303,119700.0,119690.0,0.16164872]
[1752508405890,0.76204724,119700.0,119690.0,0.16164872]
[1752508406093,0.76204676,119700.0,119690.0,0.00308872]
[1752508406322,0.76204676,119700.0,119690.0,0.16148872]
[1752508406790,0.76204676,119700.0,119690.0,0.00308872]
[1752508406791,0.75369303,119700.0,119690.0,0.00308872]
[1752508407013,0.75469303,119700.0,119690.0,0.00308872]
[1752508407239,0.23945324,119690.0,119680.0,0.1582]
[1752508407460,0.23945324,119690.0,119660.0,0.342]
[1752508407461,0.256194,119670.0,119660.0,0.00215347]
[1752508407676,0.75147912,119670.0,119660.0,0.00215347]
[1752508408141,0.88598623,119670.0,119660.0,0.00215347]
[1752508408354,0.88498623,119670.0,119660.0,0.00215347]
[1752508408566,0.88498623,119670.0,119660.0,1e-08]
[1752508408990,1.01466711,119670.0,119660.0,1e-08]
[1752508409203,1.35466711,119670.0,119660.0,1e-08]
[1752508409410,1.37420796,119670.0,119660.0,1e-08]
[1752508409621,0.74388649,119670.0,119660.0,1e-08]
[1752508409982,0.25006912,119650.0,119640.0,0.002]
[1752508410204,0.30009985,119630.0,119620.0,0.002]
[1752508410532,0.30009985,119630.0,119620.0,0.00215359]
[1752508410533,1.09684696,119630.0,119620.0,0.00215359]
[1752508410731,1.73333843,119630.0,119620.0,0.00215359]
[1752508411116,0.93015207,119610.0,119600.0,0.002]
[1752508411321,1.32649918,119610.0,119600.0,0.002]
[1752508411574,1.32966918,119610.0,119600.0,0.002]
[1752508411799,1.32866918,119610.0,119600.0,0.002]
[1752508411969,0.69534771,119610.0,119600.0,0.002]
[1752508412130,0.5650006,119610.0,119600.0,0.002]
[1752508412567,0.17657003,119610.0,119600.0,0.002]
[1752508412738,0.19546103,119610.0,119600.0,0.002]
[1752508413164,0.8598825,119610.0,119600.0,0.002]
[1752508413391,1.18402224,119610.0,119600.0,0.002]
[1752508413592,1.18602224,119610.0,119600.0,0.003]
[1752508413940,1.18602182,119610.0,119600.0,0.003]
[1752508414174,0.36328009,119610.0,119600.0,0.003]
[1752508414354,0.33829003,119610.0,119600.0,0.0050903]
[1752508414595,0.32993009,119610.0,119600.0,0.0050903]
[1752508414812,0.20908088,119630.0,119600.0,0.42543741]
[1752508415023,0.16718372,119630.0,119610.0,0.42134711]
[1752508415234,0.16718372,119630.0,119620.0,0.00208995]
[1752508415882,0.16719612,119620.0,119610.0,0.34]
[1752508416091,0.16719612,119620.0,119600.0,0.50168]
[1752508416293,0.17555529,119620.0,119610.0,0.00309012]
[1752508416496,0.17556996,119610.0,119600.0,0.58302711]
[1752508416674,0.88382179,119610.0,119600.0,0.342]
[1752508416943,0.89118215,119610.0,119600.0,0.002]
[1752508417150,0.89118222,119610.0,119600.0,0.002]
[1752508417358,0.24950074,119610.0,119600.0,0.002]
[1752508417565,0.88282221,119610.0,119600.0,0.002]
[1752508417772,0.24950074,119610.0,119600.0,0.003]
[1752508418799,0.25786061,119610.0,119600.0,0.003]
[1752508419002,0.26522111,119610.0,119600.0,0.003]
[1752508419417,0.24850095,119610.0,119600.0,0.003]
[1752508419624,1.01216953,119610.0,119600.0,0.003]
[1752508419841,1.01216953,119610.0,119600.0,0.005]
[1752508419842,1.00314653,119610.0,119600.0,0.005]
[1752508420457,1.00214653,119610.0,119600.0,0.002]
[1752508420670,1.00414653,119610.0,119600.0,0.003]
[1752508420883,1.00514653,119610.0,119600.0,0.003]
[1752508421321,0.23296137,119590.0,119580.0,0.002]
[1752508421527,0.6665002,119590.0,119580.0,0.00215362]
[1752508421766,0.68639351,119590.0,119580.0,0.00215362]
[1752508422196,1.31971498,119590.0,119580.0,0.00215362]
[1752508422431,1.31871498,119590.0,119580.0,0.00215362]
[1752508423105,0.29469214,119570.0,119560.0,0.002]
[1752508423269,1.00936072,119570.0,119560.0,0.002]
[1752508423505,0.64720925,119570.0,119560.0,0.002]
[1752508423717,0.16726603,119570.0,119560.0,0.002]
[1752508423940,0.32554603,119570.0,119560.0,0.004091]
[1752508424150,0.16726603,119570.0,119560.0,0.004091]
[1752508424364,0.16726433,119580.0,119560.0,0.004091]
[1752508424576,0.20374436,119590.0,119560.0,0.3463354]
[1752508424789,0.13892937,119590.0,119570.0,0.34]
[1752508425010,0.16725204,119580.0,119570.0,0.34]
[1752508426108,0.18397619,119580.0,119570.0,0.34]
[1752508426323,0.16725204,119580.0,119570.0,0.34]
[1752508426549,0.18397619,119580.0,119570.0,0.34]
[1752508426781,0.18397612,119580.0,119570.0,0.34]
[1752508427039,0.18299144,119570.0,119560.0,0.002]
[1752508427271,0.950831,119570.0,119560.0,0.002]
[1752508427487,1.014331,119570.0,119560.0,0.002]
[1752508427718,1.014331,119570.0,119560.0,0.003]
[1752508427942,0.38100953,119570.0,119560.0,0.003]
[1752508428165,0.38100953,119570.0,119560.0,0.002]
[1752508428616,0.33100953,119570.0,119560.0,0.003]
[1752508428830,0.38000953,119570.0,119560.0,0.003]
[1752508429045,0.38989042,119570.0,119560.0,0.003]
[1752508429290,1.02621189,119570.0,119560.0,0.004]
[1752508430232,0.30166242,119570.0,119560.0,0.004]
[1752508430470,0.2442987,119570.0,119560.0,0.004]
[1752508430746,0.003,119570.0,119560.0,0.006091]
[1752508430948,0.003,119570.0,119560.0,0.503131]
[1752508431157,0.003,119570.0,119560.0,0.50104]
[1752508431604,0.003,119570.0,119560.0,0.69341139]
[1752508431814,0.003,119570.0,119560.0,0.67668402]
[1752508432038,0.003,119570.0,119560.0,0.68504788]
[1752508432256,0.003,119570.0,119560.0,0.69341167]
[1752508432479,0.003,119570.0,119560.0,0.68504795]
[1752508432702,0.003,119570.0,119560.0,0.78312229]
[1752508433395,0.003,119570.0,119560.0,1.51908029]
[1752508433612,0.003,119570.0,119560.0,1.45556329]
[1752508433824,0.003,119570.0,119560.0,1.07676429]
[1752508434057,0.003,119570.0,119560.0,1.00599329]
[1752508434286,0.003,119570.0,119560.0,0.42534711]
[1752508434511,0.003,119570.0,119560.0,0.50904386]
[1752508434757,0.003,119570.0,119560.0,0.68468767]
[1752508434978,0.003,119570.0,119560.0,0.69305111]
[1752508435198,0.003,119570.0,119560.0,0.77439822]
[1752508436148,0.003,119570.0,119560.0,1.07009822]
[1752508436379,0.003,119570.0,119560.0,0.6397]
[1752508436602,0.23878797,119570.0,119560.0,0.344]
[1752508436807,0.23878797,119570.0,119560.0,0.50004]
[1752508436808,0.2606253,119570.0,119560.0,0.50004]
[1752508437017,0.2606253,119570.0,119560.0,0.344]
[1752508437446,0.25226242,119570.0,119560.0,0.344]
[1752508438282,0.06827,119570.0,119560.0,0.344]
[1752508438494,0.2689879,119570.0,119560.0,0.50446207]
[1752508438754,0.06827,119570.0,119560.0,0.66728002]
[1752508438970,0.08499555,119570.0,119560.0,0.5]
[1752508439183,0.07663267,119570.0,119560.0,0.67564402]
[1752508439414,0.07663267,119570.0,119560.0,0.5]
[1752508439622,0.08499541,119570.0,119560.0,0.5]
[1752508439848,0.26898741,119570.0,119560.0,0.5]
[1752508440055,0.26062432,119570.0,119560.0,0.5]
[1752508440267,0.27735106,119570.0,119560.0,0.5]
[1752508440475,0.26062544,119570.0,119560.0,0.5]
[1752508440692,0.25226214,119570.0,119560.0,0.50446207]
[1752508440902,0.2606253,119570.0,119560.0,0.5]
[1752508441156,0.26062551,119570.0,119560.0,0.49932]
[1752508441575,0.24389891,119570.0,119560.0,0.49932]
[1752508441796,0.17026603,119570.0,119560.0,0.49932]
[1752508442010,0.19832481,119570.0,119560.0,0.49932]
[1752508442235,0.22156235,119570.0,119560.0,0.49932]
[1752508442589,0.25466235,119570.0,119560.0,0.004]
[1752508442668,0.25466235,119570.0,119560.0,0.159]
[1752508442887,0.53992946,119570.0,119560.0,0.004]
[1752508443104,1.04464805,119570.0,119560.0,0.004]
[1752508446126,1.04464805,119570.0,119560.0,0.003]
[1752508446127,0.88672805,119570.0,119560.0,0.003]
[1752508446356,0.25166235,119570.0,119560.0,0.003]
[1752508446581,0.25866235,119570.0,119560.0,0.003]
[1752508447027,0.26702565,119570.0,119560.0,0.003]
[1752508447280,0.007,119570.0,119560.0,0.51028002]
[1752508447501,0.007,119570.0,119560.0,0.53537132]
[1752508447727,0.007,119570.0,119560.0,2.01733538]
[1752508447966,0.007,119570.0,119560.0,0.63962279]
[1752508448420,0.01672401,119580.0,119570.0,0.51562919]
[1752508448637,0.00836197,119580.0,119570.0,0.91373939]
[1752508448858,0.18693205,119590.0,119570.0,0.91373939]
[1752508449075,0.19529325,119590.0,119580.0,0.00209065]
[1752508449311,0.2362555,119590.0,119570.0,0.90537644]
[1752508449522,0.00836204,119580.0,119570.0,0.9061796]
[1752508449746,0.01672429,119580.0,119570.0,0.73811041]
[1752508449974,0.19530865,119580.0,119570.0,0.6494]
[1752508450250,0.03305661,119580.0,119570.0,0.6494]
[1752508450479,0.20030865,119580.0,119570.0,0.6494]
[1752508450700,0.23160942,119580.0,119570.0,0.6494]
[1752508450925,0.23997202,119580.0,119570.0,0.6494]
[1752508451802,0.25434717,119580.0,119570.0,0.6494]
[1752508452250,0.0674,119580.0,119570.0,0.6494]
[1752508452476,0.00053793,119580.0,119570.0,0.84175509]
[1752508452927,0.00053793,119580.0,119570.0,1.4755401]
[1752508453360,0.00053793,119580.0,119570.0,0.84175509]
[1752508453802,0.02508262,119600.0,119590.0,0.34]
[1752508454065,0.19230705,119600.0,119590.0,0.34]
[1752508454288,0.25777705,119600.0,119590.0,0.34]
[1752508454509,0.26613818,119600.0,119590.0,0.34]
[1752508455636,0.00836127,119590.0,119580.0,0.17561461]
[1752508455855,0.24105521,119600.0,119590.0,0.34]
[1752508456294,0.01572275,119590.0,119570.0,0.20071776]
[1752508456514,0.24941613,119600.0,119580.0,0.68054761]
[1752508456733,0.24941613,119600.0,119580.0,0.68681928]
[1752508456952,0.001,119590.0,119580.0,0.68781928]
[1752508457180,0.24941613,119600.0,119580.0,0.67845703]
[1752508457437,0.00497,119610.0,119590.0,0.53232292]
[1752508457646,0.00215336,119610.0,119600.0,0.53439756]
[1752508457923,0.24742864,119620.0,119600.0,0.52394627]
[1752508458135,0.24742864,119620.0,119610.0,0.15488]
[1752508458136,0.25039913,119620.0,119610.0,0.15488]
[1752508458346,0.24203961,119620.0,119610.0,0.15488]
[1752508458577,0.02508234,119600.0,119580.0,0.10007196]
[1752508458797,0.20364177,119600.0,119590.0,0.49499336]
[1752508459021,0.1942812,119600.0,119590.0,0.34015336]
[1752508459255,0.00297,119600.0,119590.0,0.50335526]
[1752508459475,0.05159023,119610.0,119590.0,0.69567776]
[1752508459689,0.05159023,119610.0,119600.0,0.0020903]
[1752508459910,0.05059023,119610.0,119600.0,0.0020903]
[1752508460128,0.05895052,119610.0,119600.0,0.0104515]
[1752508460345,0.05059009,119610.0,119600.0,0.01881263]
[1752508460562,0.05895024,119610.0,119600.0,0.17361256]
[1752508460773,0.06731053,119610.0,119600.0,0.17152233]
[1752508460988,0.05895024,119610.0,119600.0,0.17152233]
[1752508461224,0.0673106,119610.0,119600.0,0.1548]
[1752508461450,0.06731053,119610.0,119600.0,0.1568903]
[1752508461946,0.05904835,119620.0,119600.0,0.349197]
[1752508462177,0.03640738,119620.0,119610.0,0.16721009]
[1752508462398,0.04476697,119620.0,119600.0,0.35546727]
[1752508462619,0.04476697,119620.0,119610.0,0.0083605]
[1752508462620,0.00297,119620.0,119610.0,0.0083605]
[1752508462849,0.002,119630.0,119620.0,0.17555585]
[1752508463076,0.01035847,119630.0,119620.0,0.67811537]
[1752508463299,0.002,119630.0,119620.0,0.35483406]
[1752508463754,0.002,119630.0,119620.0,0.43618117]
[1752508464884,0.004,119630.0,119620.0,0.43718117]
[1752508465569,0.65747272,119630.0,119620.0,0.001]
[1752508465783,1.01750197,119630.0,119620.0,0.001]
[1752508465992,1.08321309,119630.0,119620.0,0.001]
[1752508466616,0.01672163,119600.0,119590.0,0.00224383]
[1752508466830,0.17392074,119600.0,119590.0,0.00224383]
[1752508467040,0.8290622,119600.0,119590.0,0.00015336]
[1752508467244,1.01404839,119600.0,119590.0,0.00015336]
[1752508467377,0.37926338,119600.0,119590.0,0.00015336]
[1752508467590,0.53390338,119600.0,119590.0,0.00015336]
[1752508467805,1.16768839,119600.0,119590.0,0.00015336]
[1752508468011,1.17168839,119600.0,119590.0,0.00115336]
[1752508468220,0.53790338,119600.0,119590.0,0.00115336]
[1752508468423,1.17168839,119600.0,119590.0,0.00115336]
[1752508468846,1.17168839,119600.0,119590.0,0.00215336]
[1752508469272,1.16768839,119600.0,119590.0,0.00115336]
[1752508469504,0.07197,119600.0,119590.0,0.00115336]
[1752508469712,1.0137769,119600.0,119590.0,0.00115336]
[1752508469936,1.02104825,119600.0,119590.0,0.00015336]
[1752508470175,1.02904825,119600.0,119590.0,0.00115336]
[1752508470400,1.02804825,119600.0,119590.0,0.00115336]
[1752508470617,1.0425891,119600.0,119590.0,0.00115336]
[1752508470832,1.0285891,119600.0,119590.0,0.00015336]
[1752508471044,1.3685891,119600.0,119590.0,0.00015336]
[1752508471269,1.0345891,119600.0,119590.0,0.00115336]
[1752508471492,0.24750236,119590.0,119580.0,0.002]
[1752508471742,1.2497056,119590.0,119580.0,0.002]
[1752508471955,1.2496056,119590.0,119580.0,0.002]
[1752508472180,0.93077715,119570.0,119560.0,0.002]
[1752508472399,1.1728099,119570.0,119560.0,0.002]
[1752508472621,1.1759699,119570.0,119560.0,0.002]
[1752508472832,1.1749699,119570.0,119560.0,0.002]
[1752508473536,1.1849699,119570.0,119560.0,0.004]
[1752508474205,0.39658489,119570.0,119560.0,0.004]
[1752508474423,0.9813699,119570.0,119560.0,0.004]
[1752508474663,1.0303699,119570.0,119560.0,0.004]
[1752508475089,1.0323699,119570.0,119560.0,0.004]
[1752508475734,1.1892499,119570.0,119560.0,0.004]
[1752508477265,0.80100909,119600.0,119570.0,0.04614085]
[1752508477266,0.1839599,119600.0,119570.0,0.04614085]
[1752508477476,0.00836204,119580.0,119570.0,0.40571112]
[1752508477705,0.19232605,119590.0,119570.0,0.42025197]
[1752508477913,0.17561401,119580.0,119570.0,0.06571112]
[1752508478125,0.02508654,119580.0,119570.0,0.90571112]
[1752508478347,0.17562919,119570.0,119560.0,0.004]
[1752508478567,0.50883558,119570.0,119560.0,0.346]
[1752508478779,0.33320597,119570.0,119560.0,0.354364]
[1752508479002,0.31332,119570.0,119560.0,0.54473518]
[1752508479213,0.31332,119570.0,119560.0,0.54273518]
[1752508479430,0.31292,119580.0,119570.0,0.18398818]
[1752508479665,0.33788472,119590.0,119570.0,0.19235099]
[1752508479887,0.33788472,119590.0,119570.0,0.18398818]
[1752508480085,0.00836197,119580.0,119570.0,0.17562516]
[1752508480296,0.02508619,119580.0,119570.0,0.17562516]
[1752508480509,0.02508619,119580.0,119570.0,0.18398825]
[1752508480720,0.03344844,119580.0,119570.0,0.0083633]
[1752508481010,0.02508724,119580.0,119570.0,0.00209082]
[1752508481431,0.02508661,119580.0,119570.0,0.17772001]
[1752508481648,0.02508661,119580.0,119570.0,0.17562919]
[1752508481874,0.01672408,119580.0,119570.0,0.20171797]
[1752508482090,0.49992192,119590.0,119570.0,0.21008071]
[1752508482312,0.02808619,119580.0,119570.0,0.17562919]
[1752508482523,0.03644858,119580.0,119570.0,0.17562919]
[1752508482736,0.20370111,119580.0,119570.0,0.001]
[1752508482943,0.19533907,119580.0,119570.0,0.00309082]
[1752508483148,0.03644963,119580.0,119570.0,0.00309082]
[1752508483367,0.02808703,119580.0,119570.0,0.00309082]
[1752508483581,0.01972457,119580.0,119570.0,0.01145412]
[1752508483787,0.01972415,119580.0,119570.0,0.19544654]
[1752508484015,0.01972415,119580.0,119570.0,0.19335544]
[1752508484215,0.01972408,119580.0,119570.0,0.20171867]
[1752508484418,0.0280864,119580.0,119570.0,0.20171881]
[1752508484655,0.02808626,119580.0,119570.0,0.21008183]
[1752508484860,0.04481111,119580.0,119560.0,0.59898968]
[1752508485069,0.02808661,119580.0,119570.0,0.00209082]
[1752508485288,0.003,119580.0,119570.0,3.64657188]
[1752508485620,0.002,119610.0,119600.0,0.18394627]
[1752508485824,0.00215353,119610.0,119600.0,0.18394627]
[1752508486031,0.01051354,119610.0,119600.0,0.17558528]
[1752508486240,0.00215353,119610.0,119600.0,0.19230733]
[1752508486448,0.00215353,119610.0,119600.0,0.54902896]
[1752508486661,0.00215353,119610.0,119600.0,1.26416108]
[1752508486877,0.00215353,119610.0,119600.0,3.83016005]
[1752508487512,0.002,119630.0,119620.0,0.53227468]
[1752508487730,0.002,119630.0,119620.0,0.76902179]
[1752508488148,0.002,119630.0,119620.0,0.76898179]
[1752508488587,0.002,119630.0,119620.0,0.34]
[1752508488588,0.02707604,119630.0,119620.0,0.34]
[1752508488795,0.01035847,119630.0,119620.0,0.6792753]
[1752508488997,0.01871708,119630.0,119620.0,0.67927551]
[1752508489221,0.01135847,119630.0,119620.0,0.69599434]
[1752508489443,0.003,119630.0,119620.0,0.69599434]
[1752508489883,0.18170075,119630.0,119620.0,0.34]
[1752508490100,0.02507821,119620.0,119600.0,0.53230677]
[1752508490311,0.20899358,119620.0,119610.0,0.49504]
[1752508490518,0.20063434,119620.0,119610.0,0.49504]
[1752508490724,0.20063434,119620.0,119610.0,0.34]
[1752508490933,0.19229054,119610.0,119590.0,0.18394892]
[1752508491166,0.20381097,119610.0,119590.0,0.08150064]
[1752508491364,0.19230642,119600.0,119590.0,0.23630064]
[1752508491590,0.19230642,119600.0,119590.0,0.15495353]
[1752508491591,0.19546698,119600.0,119590.0,0.15495353]
[1752508491807,0.25966698,119600.0,119590.0,0.15495353]
[1752508492252,0.25130585,119600.0,119590.0,0.15495353]
[1752508492465,0.25130585,119600.0,119590.0,0.49495353]
[1752508492675,0.25130585,119600.0,119590.0,0.49595353]
[1752508492904,0.09344227,119600.0,119590.0,0.49595353]
[1752508493123,0.19229128,119610.0,119590.0,0.67991504]
[1752508493324,0.00836071,119600.0,119590.0,0.67055342]
[1752508493557,0.01672163,119600.0,119590.0,0.66219159]
[1752508493764,0.19546656,119600.0,119590.0,0.49495353]
[1752508493969,0.2216062,119600.0,119590.0,0.15495353]
[1752508494179,0.2543062,119600.0,119590.0,0.15495353]
[1752508494387,0.2543062,119600.0,119590.0,0.00015353]
[1752508494596,0.2543062,119600.0,119590.0,0.15459353]
[1752508494815,0.88809121,119600.0,119590.0,0.00015353]
[1752508495018,0.2543062,119600.0,119590.0,0.00015353]
[1752508495446,0.2553062,119600.0,119590.0,0.00015353]
[1752508495851,0.88909121,119600.0,119590.0,0.00015353]
[1752508496119,0.97043832,119600.0,119590.0,0.00015353]
[1752508496761,0.33665331,119600.0,119590.0,0.00015353]
[1752508497239,0.33465331,119600.0,119590.0,0.00015353]
[1752508497464,0.34065254,119600.0,119590.0,0.00115353]
[1752508497721,0.007,119600.0,119590.0,0.17048206]
[1752508497943,0.25849605,119600.0,119590.0,0.00015353]
[1752508498183,0.26540599,119600.0,119590.0,0.00115353]
[1752508498396,0.25240599,119600.0,119590.0,0.00015353]
[1752508498597,0.01636057,119600.0,119590.0,0.18511518]
[1752508498801,0.008,119600.0,119590.0,0.20183814]
[1752508499006,0.008,119600.0,119590.0,0.62318525]
[1752508499211,0.008,119600.0,119590.0,1.25697026]
[1752508499422,0.006,119600.0,119590.0,1.27151111]
[1752508499653,0.006,119600.0,119590.0,2.30192011]
[1752508500096,0.001,119600.0,119590.0,2.36412011]
[1752508500322,0.00100944,119600.0,119590.0,2.36412011]
[1752508500827,0.00100944,119600.0,119590.0,0.42150064]
[1752508501056,0.02091093,119600.0,119590.0,0.00015353]
[1752508501282,0.85301128,119600.0,119590.0,0.00015353]
[1752508501510,0.24982627,119600.0,119590.0,0.00015353]
[1752508501732,0.24982627,119600.0,119590.0,0.00115353]
[1752508501733,0.24982585,119600.0,119590.0,0.00115353]
[1752508501960,0.25818698,119600.0,119590.0,0.00115353]
[1752508502172,0.2498262,119600.0,119590.0,0.00115353]
[1752508502821,0.25818698,119600.0,119590.0,0.00115353]
[1752508503062,0.26654818,119600.0,119590.0,0.00015353]
[1752508503531,0.25718698,119600.0,119590.0,0.00015353]
[1752508503825,0.26018698,119600.0,119590.0,0.00015353]
[1752508504036,0.003,119600.0,119590.0,0.19247631]
[1752508504243,0.003,119600.0,119590.0,0.68551631]
[1752508504457,0.003,119600.0,119590.0,1.4809004]
[1752508504715,0.003,119600.0,119590.0,3.2672094]
[1752508504928,0.003,119600.0,119590.0,3.3172094]
[1752508505142,0.004,119600.0,119590.0,3.1641694]
[1752508505353,0.004,119600.0,119590.0,3.3171294]
[1752508506003,0.001,119600.0,119590.0,3.3171294]
[1752508506211,0.002,119630.0,119620.0,0.19227482]
[1752508506421,0.01035847,119630.0,119620.0,0.3533542]
[1752508506634,0.01871708,119630.0,119620.0,0.33663544]
[1752508506861,0.01035847,119630.0,119620.0,0.34499489]
[1752508507088,0.002,119630.0,119620.0,0.3533542]
[1752508507303,0.002,119630.0,119620.0,0.43470131]
[1752508507554,0.002,119630.0,119620.0,0.43570131]
[1752508507782,0.18907929,119630.0,119620.0,0.001]
[1752508507990,0.25137985,119630.0,119620.0,0.001]
[1752508508231,0.25137985,119630.0,119620.0,0.00308995]
[1752508508440,0.08519743,119630.0,119620.0,0.3395256]
[1752508508663,0.06971514,119630.0,119620.0,0.1618798]
[1752508508886,0.06135611,119630.0,119620.0,0.17232948]
[1752508509095,0.06971507,119630.0,119620.0,0.15352]
[1752508509325,0.21917999,119630.0,119620.0,0.00308995]
[1752508509545,0.24797999,119630.0,119620.0,0.15456995]
[1752508509755,0.25633909,119630.0,119620.0,0.15444995]
[1752508509966,0.25733909,119630.0,119620.0,0.15440995]
[1752508510178,0.25633909,119630.0,119620.0,0.15436995]
[1752508510396,0.24797985,119630.0,119620.0,0.15436995]
[1752508510605,0.25097985,119630.0,119620.0,0.15432995]
[1752508511024,0.25097943,119630.0,119620.0,0.15432995]
[1752508511242,0.22853825,119630.0,119620.0,0.15432995]
[1752508511703,0.23689721,119630.0,119620.0,0.16991974]
[1752508511950,0.03628,119630.0,119620.0,0.33502591]
[1752508512168,0.003,119630.0,119620.0,0.34338557]
[1752508512380,0.003,119630.0,119620.0,0.35174509]
[1752508512636,0.19525804,119630.0,119620.0,0.16782979]
[1752508512852,0.19843804,119630.0,119620.0,0.16782979]
[1752508513065,0.25457992,119630.0,119620.0,0.16750979]
[1752508513707,0.25457992,119630.0,119620.0,0.04558979]
[1752508513708,0.2472211,119630.0,119620.0,0.04558979]
[1752508513938,0.2432211,119630.0,119620.0,0.19750979]
[1752508514145,0.2432211,119630.0,119620.0,0.19730979]
[1752508514353,0.2462211,119630.0,119620.0,0.04558979]
[1752508514571,0.88000611,119630.0,119620.0,0.04558979]
[1752508514780,0.2462211,119630.0,119620.0,0.04558979]
[1752508515435,0.2462211,119630.0,119620.0,0.03806979]
[1752508515863,0.2472211,119630.0,119620.0,0.03806979]
[1752508517580,0.2472211,119630.0,119620.0,0.03]
[1752508517800,0.3985411,119630.0,119620.0,0.03]
[1752508519400,0.00718,119630.0,119620.0,0.03]
[1752508519617,0.18272089,119630.0,119620.0,0.03]
[1752508519832,0.25367985,119630.0,119620.0,0.03]
[1752508520474,0.2453211,119630.0,119620.0,0.03]
[1752508520691,0.2453211,119630.0,119620.0,0.03208995]
[1752508521341,0.2453211,119630.0,119620.0,0.03]
[1752508521342,0.96045322,119630.0,119620.0,0.03]
[1752508521778,0.96045322,119630.0,119620.0,0.0305]
[1752508522008,0.96045322,119630.0,119620.0,0.02725]
[1752508522228,1.31499407,119630.0,119620.0,0.02725]
[1752508522885,1.31399407,119630.0,119620.0,0.02725]
[1752508523103,0.2450306,119610.0,119600.0,0.002]
[1752508523323,1.26028272,119610.0,119600.0,0.002]
[1752508523753,1.26346272,119610.0,119600.0,0.002]
[1752508523964,1.60346272,119610.0,119600.0,0.002]
[1752508524385,0.97367771,119610.0,119600.0,0.002]
[1752508524601,0.63367771,119610.0,119600.0,0.002]
[1752508525231,0.48287771,119610.0,119600.0,0.002]
[1752508525679,1.11666272,119610.0,119600.0,0.002]
[1752508527041,0.16725204,119580.0,119540.0,0.0022]
[1752508527291,0.88360793,119550.0,119540.0,0.0022]
[1752508527492,1.17522004,119550.0,119540.0,0.0022]
[1752508527701,1.58358439,119550.0,119540.0,0.0022]
[1752508527911,1.58676439,119550.0,119540.0,0.0022]
[1752508528773,1.58676439,119550.0,119540.0,0.00235336]
[1752508529420,1.6681115,119550.0,119540.0,0.00235336]
[1752508529637,1.6681115,119550.0,119540.0,0.00335336]
[1752508530049,1.6681115,119550.0,119540.0,0.00235336]
[1752508530264,1.03732649,119550.0,119540.0,0.00335336]
[1752508530474,1.6711115,119550.0,119540.0,0.00335336]
[1752508530684,0.66151584,119550.0,119540.0,0.00335336]
[1752508530895,1.30139265,119550.0,119540.0,0.00335336]
[1752508531122,0.66760764,119550.0,119540.0,0.00335336]
[1752508531558,1.30139265,119550.0,119540.0,0.00335336]
[1752508532949,0.66760764,119550.0,119540.0,0.00335336]
[1752508533186,1.30139265,119550.0,119540.0,0.00335336]
[1752508534741,0.33507727,119550.0,119540.0,0.00335336]
[1752508535002,0.003,119550.0,119540.0,0.17902663]
[1752508535205,0.003,119550.0,119540.0,0.52739175]
[1752508535431,0.003,119550.0,119540.0,0.52022663]
[1752508535671,0.003,119550.0,119540.0,0.52859182]
[1752508535901,0.003,119550.0,119540.0,0.52859175]
[1752508536125,0.002,119550.0,119540.0,0.52022663]
[1752508536357,0.17565822,119550.0,119540.0,0.34235336]
[1752508536564,0.00836414,119550.0,119540.0,0.35171876]
[1752508536773,0.19237224,119560.0,119540.0,0.34335336]
[1752508536977,0.19237224,119560.0,119550.0,0.00104704]
[1752508536978,0.18400789,119560.0,119550.0,0.00104704]
[1752508537200,0.33132252,119570.0,119550.0,0.16834001]
[1752508537412,0.1923548,119570.0,119550.0,0.18402188]
[1752508537628,0.1923548,119570.0,119550.0,0.18402202]
[1752508537839,0.41690956,119580.0,119550.0,0.19238581]
[1752508538122,0.41690956,119580.0,119560.0,0.19237056]
[1752508538123,0.25337664,119580.0,119560.0,0.19237056]
[1752508538345,0.25337664,119580.0,119550.0,0.25820478]
[1752508538346,0.18399295,119570.0,119550.0,0.25820478]
[1752508538559,0.89186752,119560.0,119550.0,0.34]
[1752508538768,0.16729401,119550.0,119540.0,0.15423336]
[1752508539009,0.19238713,119550.0,119540.0,0.49423336]
[1752508539215,0.00836414,119550.0,119540.0,0.34235336]
[1752508539427,0.24971879,119560.0,119540.0,0.34235336]
[1752508539638,0.00836414,119550.0,119540.0,0.34235336]
[1752508540054,0.19238685,119550.0,119540.0,0.34235336]
[1752508540292,0.19180976,119550.0,119540.0,0.34335336]
[1752508540513,0.85257821,119550.0,119540.0,0.00335336]
[1752508540724,0.96672532,119550.0,119540.0,0.00335336]
[1752508542448,0.96672532,119550.0,119540.0,0.00235336]
[1752508542697,0.96872532,119550.0,119540.0,0.00235336]
[1752508542894,0.33294031,119550.0,119540.0,0.00235336]
[1752508543119,0.96672532,119550.0,119540.0,0.00235336]
[1752508543336,0.97072532,119550.0,119540.0,0.00335336]
[1752508545072,0.97172532,119550.0,119540.0,0.00335336]
[1752508545501,0.33794031,119550.0,119540.0,0.00335336]